[Event "21st Dubai Open 2019"]
[Site "Dubai"]
[Date "2019.04.07"]
[Round "7.27"]
[White "Harsha Bharathakoti"]
[Black "Assaubayeva, Bibisara"]
[Result "1/2-1/2"]
[ECO "E92"]
[WhiteElo "2497"]
[BlackElo "2381"]
[Annotator "ChessBase"]
[PlyCount "154"]
[EventDate "2019.04.01"]
[EventType "swiss"]
[EventCountry "UAE"]
[SourceTitle "playchess.com"]
[Source "ChessBase"]
[SourceQuality "1"]
[TimeControl "5400+30"]

1. d4 Nf6 2. c4 g6 3. Nc3 Bg7 4. e4 d6 5. Nf3 O-O 6. Be2 e5 7. d5 a5 8. Bg5 Qe8 9. Nd2 Na6 10. g4 c6 11. Nf1 cxd5 12. cxd5 Bd7 13. Ng3 b5 14. Rc1 b4 15. Nb1 Nc5 16. f3 Ba4 17. Qd2 Bb5 18. h4 Bxe2 19. Qxe2 Qc8 20. h5 Qa6 21. Qxa6 Rxa6 22. Ke2 Nfd7 23. Nd2 Bf6 24. Bxf6 Nxf6 25. g5 Nfd7 26. Ngf1 f6 27. hxg6 hxg6 28. gxf6 Nxf6 29. Ng3 Kf7 30. Nc4 Na4 31. Rc2 Ke7 32. Nd2 Nc5 33. Rh6 Kf7 34. Nb3 Nfd7 35. Nxc5 Nxc5 36. Nf5 gxf5 37. Rxc5 dxc5 38. Rxa6 fxe4 39. fxe4 Rh8 40. Rxa5 c4 41. Rc5 Rh2+ 42. Kf3 b3 43. axb3 cxb3 44. Kg4 Rf2 45. Rc4 Ke7 46. Kg5 Kd6 47. Rc6+ Kd7 48. Rb6 Rf4 49. Rxb3 Rxe4 50. Kf5 Re2 51. Rb6 Kc7 52. Rc6+ Kd7 53. b4 e4 54. Rh6 e3 55. Ke5 Rg2 56. Rh7+ Kd8 57. Kd6 Rg6+ 58. Kc5 e2 59. Rh1 Rg4 60. b5 Re4 61. Re1 Kc7 62. b6+ Kd7 63. Kb5 Kd6 64. Ka6 Ra4+ 65. Kb7 Ra2 66. Kc8 Ra8+ 67. Kb7 Ra2 68. Kc8 Ra8+ 69. Kb7 Ra2 70. Kb8 Kxd5 71. b7 Kd4 72. Rb1 Rc2 73. Ka7 Rc7 74. Kb6 Rxb7+ 75. Kxb7 Kd3 76. Re1 Kd2 77. Rxe2+ Kxe2 1/2-1/2

[Event "21st Dubai Open 2019"]
[Site "Dubai"]
[Date "2019.04.07"]
[Round "7.28"]
[White "Tissir, Mohamed"]
[Black "Vokhidov, Shamsiddin"]
[Result "0-1"]
[ECO "B47"]
[WhiteElo "2386"]
[BlackElo "2494"]
[Annotator "ChessBase"]
[PlyCount "86"]
[EventDate "2019.04.01"]
[EventType "swiss"]
[EventCountry "UAE"]
[SourceTitle "playchess.com"]
[Source "ChessBase"]
[SourceQuality "1"]
[TimeControl "5400+30"]

1. e4 {[%emt 0:00:00]} c5 {[%emt 0:02:29]} 2. Nf3 {[%emt 0:00:15]} e6 {[%emt 0:01:07]} 3. d4 {[%emt 0:00:06]} cxd4 {[%emt 0:00:04]} 4. Nxd4 {[%emt 0:00:06]} Nc6 {[%emt 0:00:14]} 5. Nc3 {[%emt 0:00:07]} Qc7 {[%emt 0:01:25]} 6. f4 {[%emt 0:04:53]} a6 {[%emt 0:01:32]} 7. Nb3 {[%emt 0:00:18]} b5 {[%emt 0:08:41]} 8. Bd3 {[%emt 0:00:34]} d6 {[%emt 0:01:21]} 9. O-O {[%emt 0:00:35]} Bb7 {[%emt 0:00:16]} 10. Qe2 {[%emt 0:02:33]} Nf6 {[%emt 0:03:40]} 11. Bd2 {[%emt 0:00:06]} g6 {[%emt 0:01:22]} 12. Rae1 {[%emt 0:36:49]} Bg7 {[%emt 0:01:01]} 13. Kh1 {[%emt 0:03:34]} O-O {[%emt 0:00:16]} 14. a3 {[%emt 0:00:08]} Rac8 {[%emt 0:02:40]} 15. Qf3 {[%emt 0:07:52]} Nd7 {[%emt 0:10:47]} 16. Qh3 {[%emt 0:07:12]} b4 {[%emt 0:04:30]} 17. axb4 {[%emt 0:09:26]} Nxb4 {[%emt 0:00:31]} 18. Nb5 {[%emt 0:00:10]} axb5 {[%emt 0:01:26]} 19. Bxb4 {[%emt 0:00:02]} Nc5 {[%emt 0:09:55]} 20. e5 {[%emt 0:00:02]} Nxd3 {[%emt 0:02:07]} 21. cxd3 {[%emt 0:00:12]} dxe5 {[%emt 0:04:52]} 22. Rc1 {[%emt 0:10:39]} Qb8 {[%emt 0:00:33]} 23. Bxf8 {[%emt 0:00:05]} Rxf8 {[%emt 0:00:03]} 24. fxe5 {[%emt 0:00:09]} Qxe5 {[%emt 0:00:29]} 25. Nc5 {[%emt 0:00:26]} Bc6 {[%emt 0:00:47]} 26. Rc2 {[%emt 0:02:21]} Re8 {[%emt 0:07:06]} 27. Qg4 {[%emt 0:01:12]} Qd5 {[%emt 0:07:39]} 28. Qe2 {[%emt 0:01:16]} Qd8 {[%emt 0:04:04]} 29. Na6 {[%emt 0:06:49]} Qd6 {[%emt 0:02:15]} 30. Nc5 {[%emt 0:00:02]} f5 {[%emt 0:01:13]} 31. b4 {[%emt 0:00:29]} Bd5 {[%emt 0:00:44]} 32. Qf2 {[%emt 0:05:25]} Rf8 {[%emt 0:04:09]} 33. Qe1 {[%emt 0:01:29]} g5 {[%emt 0:02:22]} 34. Re2 {[%emt 0:00:54]} Rf6 {[%emt 0:00:21]} 35. Ne4 {[%emt 0:00:00]} fxe4 {[%emt 0:00:47]} 36. Rxf6 {[%emt 0:00:01]} Bxf6 {[%emt 0:02:58]} 37. dxe4 {[%emt 0:00:03]} Bc4 {[%emt 0:00:04]} 38. e5 {[%emt 0:00:21]} Qc7 {[%emt 0:00:11]} 39. Re3 {[%emt 0:02:13]} Bg7 {[%emt 0:00:18]} 40. h4 {[%emt 0:00:29]} g4 {[%emt 0:01:00]} 41. Qg3 {[%emt 0:00:33]} h5 {[%emt 0:00:27]} 42. Qf4 {[%emt 0:00:32]} Qe7 {[%emt 0:00:02]} 43. g3 {[%emt 0:00:30]} Qxb4 {[%emt 0:00:34]} 0-1

[Event "21st Dubai Open 2019"]
[Site "Dubai"]
[Date "2019.04.07"]
[Round "7.29"]
[White "Darini, Pouria"]
[Black "Shailesh, Dravid"]
[Result "1-0"]
[ECO "B90"]
[WhiteElo "2455"]
[BlackElo "2316"]
[Annotator "ChessBase"]
[PlyCount "75"]
[EventDate "2019.04.01"]
[EventType "swiss"]
[EventCountry "UAE"]
[SourceTitle "playchess.com"]
[Source "ChessBase"]
[SourceQuality "1"]
[TimeControl "5400+30"]

1. e4 {[%emt 0:00:00]} c5 {[%emt 0:00:33]} 2. Nf3 {[%emt 0:01:01]} d6 {[%emt 0:00:07]} 3. d4 {[%emt 0:00:52]} cxd4 {[%emt 0:00:06]} 4. Nxd4 {[%emt 0:00:05]} Nf6 {[%emt 0:00:07]} 5. Nc3 {[%emt 0:00:30]} a6 {[%emt 0:00:12]} 6. Nb3 {[%emt 0:04:46]} e6 {[%emt 0:00:14]} 7. g4 {[%emt 0:00:15]} h6 {[%emt 0:03:22]} 8. Bg2 {[%emt 0:00:25]} Nc6 {[%emt 0:00:28]} 9. f4 {[%emt 0:06:31]} Be7 {[%emt 0:02:01]} 10. Be3 {[%emt 0:02:31]} Nd7 {[%emt 0:06:54]} 11. Qe2 {[%emt 0:07:32]} g5 {[%emt 0:05:55]} 12. O-O-O {[%emt 0:16:23]} gxf4 {[%emt 0:02:36]} 13. Bxf4 {[%emt 0:00:03]} Nce5 {[%emt 0:02:15]} 14. Kb1 {[%emt 0:07:53]} b5 {[%emt 0:03:36]} 15. h3 {[%emt 0:09:06]} Qc7 {[%emt 0:02:21]} 16. Qf2 {[%emt 0:08:10]} Bb7 {[%emt 0:02:02]} 17. Rhf1 {[%emt 0:00:01]} O-O-O {[%emt 0:02:54]} 18. a4 {[%emt 0:07:41]} bxa4 {[%emt 0:12:38]} 19. Nxa4 {[%emt 0:00:44]} Kb8 {[%emt 0:00:38]} 20. Rfe1 {[%emt 0:05:53]} Rc8 {[%emt 0:07:09]} 21. Bf1 {[%emt 0:00:01]} h5 {[%emt 0:02:10]} 22. g5 {[%emt 0:01:45]} f6 {[%emt 0:02:25]} 23. gxf6 {[%emt 0:02:50]} Bxf6 {[%emt 0:00:39]} 24. Re3 {[%emt 0:09:24]} Qc6 {[%emt 0:01:51]} 25. Na5 {[%emt 0:04:23]} Qxa4 {[%emt 0:01:34]} 26. Nxb7 {[%emt 0:00:01]} Kxb7 {[%emt 0:00:47]} 27. Ra3 {[%emt 0:02:33]} Qc6 {[%emt 0:06:51]} 28. Bxa6+ {[%emt 0:00:24]} Kc7 {[%emt 0:03:15]} 29. Qa7+ {[%emt 0:01:32]} Kd8 {[%emt 0:00:01]} 30. Bxc8 {[%emt 0:00:10]} Qxc8 {[%emt 0:01:03]} 31. Rxd6 {[%emt 0:01:09]} Ke7 {[%emt 0:03:23]} 32. Raa6 {[%emt 0:00:16]} Rg8 {[%emt 0:03:40]} 33. Rxe6+ {[%emt 0:00:15]} Kd8 {[%emt 0:00:04]} 34. Rxf6 {[%emt 0:00:38]} Rg2 {[%emt 0:01:14]} 35. Bxe5 {[%emt 0:01:01]} Qxc2+ {[%emt 0:00:22]} 36. Ka2 {[%emt 0:00:00]} Qc4+ {[%emt 0:01:41]} 37. Ka3 {[%emt 0:00:01]} Qd3+ {[%emt 0:00:19]} 38. Bc3 {[%emt 0:00:05]} 1-0

[Event "21st Dubai Open 2019"]
[Site "Dubai"]
[Date "2019.04.07"]
[Round "7.30"]
[White "Tokhirjonova, Gulrukhbegim"]
[Black "Essa, Naseem Ahmed"]
[Result "1/2-1/2"]
[ECO "C77"]
[WhiteElo "2427"]
[BlackElo "1823"]
[Annotator "NA"]
[PlyCount "56"]
[EventDate "2019.04.01"]
[EventType "swiss"]
[EventCountry "UAE"]
[SourceTitle "playchess.com"]
[Source "ChessBase"]
[SourceQuality "1"]
[TimeControl "5400+30"]

1. e4 {[%emt 0:00:00]} e5 {[%emt 0:00:00]} 2. Nf3 {[%emt 0:00:02]} Nc6 {[%emt 0:00:00]} 3. Bb5 {[%emt 0:00:11]} a6 {[%emt 0:00:00]} 4. Ba4 {[%emt 0:00:35]} Nf6 {[%emt 0:00:00]} 5. d3 {[%emt 0:00:47]} b5 {[%emt 0:00:52]} 6. Bb3 {[%emt 0:00:09]} Bc5 {[%emt 0:00:06]} 7. O-O {[%emt 0:02:49]} O-O {[%emt 0:00:25]} 8. c3 {[%emt 0:00:23]} d5 {[%emt 0:15:30]} 9. Qe2 {[%emt 0:06:00]} dxe4 {[%emt 0:00:54]} 10. dxe4 {[%emt 0:00:11]} Qe7 {[%emt 0:03:56]} 11. Bd5 {[%emt 0:12:01]} Bb7 {[%emt 0:11:38]} 12. b4 {[%emt 0:02:46]} Bd6 {[%emt 0:01:36]} 13. Bg5 {[%emt 0:01:21]} Nd8 {[%emt 0:03:47]} 14. Nh4 {[%emt 0:02:59]} Bxd5 {[%emt 0:01:51]} 15. exd5 {[%emt 0:00:09]} e4 {[%emt 0:07:52]} 16. Bxf6 {[%emt 0:14:12]} Qxf6 {[%emt 0:00:08]} 17. Qxe4 {[%emt 0:00:33]} a5 {[%emt 0:02:22]} 18. Nf5 {[%emt 0:02:42]} Nb7 {[%emt 0:02:34]} 19. Na3 {[%emt 0:10:02]} axb4 {[%emt 0:02:35]} 20. Nxb5 {[%emt 0:00:10]} bxc3 {[%emt 0:06:13]} 21. Rfc1 {[%emt 0:02:24]} Ra5 {[%emt 0:10:55]} 22. Nxc3 {[%emt 0:23:25]} Be5 {[%emt 0:08:21]} 23. Rab1 {[%emt 0:00:23]} Nd6 {[%emt 0:05:29]} 24. Nxd6 {[%emt 0:00:31]} cxd6 {[%emt 0:00:04]} 25. Ne2 {[%emt 0:13:46]} Rxa2 {[%emt 0:00:10]} 26. Rf1 {[%emt 0:00:17]} Qg6 {[%emt 0:04:15]} 27. Qf3 {[%emt 0:00:17]} h6 {[%emt 0:02:51]} 28. g3 {[%emt 0:00:28]} Rfa8 {[%emt 0:00:24]} 1/2-1/2

[Event "21st Dubai Open 2019"]
[Site "Dubai"]
[Date "2019.04.07"]
[Round "7.31"]
[White "Dhulipalla Bala Chandra Prasa"]
[Black "Mendonca, Leon Luke"]
[Result "1-0"]
[ECO "A62"]
[WhiteElo "2384"]
[BlackElo "2427"]
[Annotator "NA"]
[PlyCount "85"]
[EventDate "2019.04.01"]
[EventType "swiss"]
[EventCountry "UAE"]
[SourceTitle "playchess.com"]
[Source "ChessBase"]
[SourceQuality "1"]
[TimeControl "5400+30"]

1. d4 {[%emt 0:00:00]} Nf6 {[%emt 0:00:00]} 2. c4 {[%emt 0:00:00]} e6 {[%emt 0:00:00]} 3. g3 {[%emt 0:00:00]} c5 {[%emt 0:00:00]} 4. d5 {[%emt 0:00:00]} exd5 {[%emt 0:00:00]} 5. cxd5 {[%emt 0:00:00]} d6 {[%emt 0:00:01]} 6. Nc3 {[%emt 0:00:00]} g6 {[%emt 0:00:06]} 7. Nf3 {[%emt 0:00:01]} Bg7 {[%emt 0:00:06]} 8. Bg2 {[%emt 0:00:03]} O-O {[%emt 0:00:09]} 9. O-O {[%emt 0:00:04]} Re8 {[%emt 0:00:13]} 10. Bf4 {[%emt 0:00:03]} Na6 {[%emt 0:00:07]} 11. Re1 {[%emt 0:02:11]} Bg4 {[%emt 0:00:11]} 12. h3 {[%emt 0:27:15]} Bxf3 {[%emt 0:00:12]} 13. Bxf3 {[%emt 0:00:41]} Nd7 {[%emt 0:00:24]} 14. Bg2 {[%emt 0:08:16]} Ne5 {[%emt 0:00:35]} 15. Qc2 {[%emt 0:03:20]} Rb8 {[%emt 0:03:56]} 16. Ne4 $11 {[%emt 0:06:47]} b5 {[%emt 0:08:42]} 17. a3 {[%emt 0:04:05]} h6 {[%emt 0:11:43]} 18. g4 {[%emt 0:07:17]} Nc7 {[%emt 0:03:51]} 19. Rad1 {[%emt 0:04:10]} b4 {[%emt 0:03:17]} 20. e3 {[%emt 0:08:06]} bxa3 {[%emt 0:09:38]} 21. bxa3 {[%emt 0:00:14]} Nb5 {[%emt 0:01:13]} 22. Qa4 {[%emt 0:07:39]} f5 {[%emt 0:07:29]} 23. Rb1 {[%emt 0:10:43]} a6 {[%emt 0:30:20]} 24. Qxa6 {[%emt 0:07:09]} Nc7 {[%emt 0:04:02]} 25. Rxb8 {[%emt 0:00:02]} Qxb8 {[%emt 0:00:01]} 26. Qxd6 {[%emt 0:00:11]} fxe4 {[%emt 0:00:25]} 27. Bxe4 {[%emt 0:00:28]} c4 {[%emt 0:01:54]} 28. Rb1 {[%emt 0:01:25]} Qc8 {[%emt 0:01:34]} 29. Bxe5 {[%emt 0:00:36]} Rxe5 {[%emt 0:00:52]} 30. Qxg6 {[%emt 0:00:05]} Nxd5 {[%emt 0:01:35]} 31. Rb5 {[%emt 0:03:01]} Ne7 {[%emt 0:11:54]} 32. Qh7+ {[%emt 0:00:02]} Kf8 {[%emt 0:00:04]} 33. Rxe5 {[%emt 0:00:05]} Bxe5 {[%emt 0:00:02]} 34. Qxh6+ {[%emt 0:00:01]} Bg7 {[%emt 0:00:10]} 35. Qf4+ {[%emt 0:00:11]} Ke8 {[%emt 0:01:17]} 36. Bc2 {[%emt 0:00:16]} Qa6 {[%emt 0:01:18]} 37. h4 {[%emt 0:01:02]} c3 {[%emt 0:00:34]} 38. a4 {[%emt 0:01:46]} Qe2 {[%emt 0:00:31]} 39. Qe4 {[%emt 0:00:12]} Kf8 {[%emt 0:00:32]} 40. Qa8+ {[%emt 0:00:42]} Kf7 {[%emt 0:00:01]} 41. Bb3+ {[%emt 0:00:09]} Kf6 {[%emt 0:00:17]} 42. Qe4 {[%emt 0:00:06]} Bf8 {[%emt 0:00:29]} 43. Qe6+ {[%emt 0:00:09]} 1-0

[Event "21st Dubai Open 2019"]
[Site "Dubai"]
[Date "2019.04.07"]
[Round "7.33"]
[White "Mohannad, Farhan"]
[Black "Manush Shah"]
[Result "1/2-1/2"]
[ECO "D10"]
[WhiteElo "2183"]
[BlackElo "2405"]
[Annotator "NA"]
[PlyCount "71"]
[EventDate "2019.04.01"]
[EventType "swiss"]
[EventCountry "UAE"]
[SourceTitle "playchess.com"]
[Source "ChessBase"]
[SourceQuality "1"]
[TimeControl "5400+30"]

1. d4 {[%emt 0:00:00]} d5 {[%emt 0:01:14]} 2. c4 {[%emt 0:00:00]} c6 {[%emt 0:00:09]} 3. cxd5 {[%emt 0:00:00]} cxd5 {[%emt 0:03:14]} 4. Bg5 {[%emt 0:00:00]} Nf6 {[%emt 0:00:49]} 5. Bxf6 {[%emt 0:00:03]} gxf6 {[%emt 0:00:06]} 6. Nc3 {[%emt 0:00:39]} Nc6 {[%emt 0:00:22]} 7. Nf3 {[%emt 0:00:12]} e6 {[%emt 0:00:31]} 8. e3 {[%emt 0:00:25]} Rg8 {[%emt 0:01:07]} 9. g3 {[%emt 0:00:10]} Bd6 {[%emt 0:01:12]} 10. Be2 {[%emt 0:01:17]} f5 {[%emt 0:01:54]} 11. O-O {[%emt 0:02:09]} Bd7 {[%emt 0:00:45]} 12. Qd2 {[%emt 0:12:45]} Rc8 {[%emt 0:01:28]} 13. Rac1 {[%emt 0:01:59]} Qf6 {[%emt 0:19:16]} 14. Kh1 {[%emt 0:00:52]} Kf8 $14 {[%emt 0:02:44]} 15. Na4 {[%emt 0:06:03]} b6 {[%emt 0:02:01]} 16. a3 {[%emt 0:00:18]} Kg7 {[%emt 0:01:01]} 17. Ba6 {[%emt 0:00:35]} Rcd8 {[%emt 0:02:24]} 18. Nc3 {[%emt 0:03:13]} Na5 {[%emt 0:01:02]} 19. Qe2 {[%emt 0:00:08]} Bc8 {[%emt 0:09:36]} 20. Bd3 {[%emt 0:00:58]} Bb7 {[%emt 0:01:37]} 21. Nh4 {[%emt 0:03:08]} Kh8 {[%emt 0:06:12]} 22. f4 {[%emt 0:00:15]} Qh6 {[%emt 0:02:32]} 23. Rg1 {[%emt 0:06:44]} Nc4 {[%emt 0:08:13]} 24. Nf3 {[%emt 0:00:28]} f6 {[%emt 0:09:20]} 25. Rg2 {[%emt 0:00:24]} Rc8 {[%emt 0:06:39]} 26. Rcg1 {[%emt 0:10:45]} Qh5 {[%emt 0:02:12]} 27. Nd1 {[%emt 0:07:40]} Rg7 {[%emt 0:04:53]} 28. Qf2 {[%emt 0:04:03]} Be7 {[%emt 0:03:22]} 29. h3 {[%emt 0:02:56]} Nd6 {[%emt 0:01:49]} 30. Nd2 {[%emt 0:05:54]} Qxh3+ {[%emt 0:02:07]} 31. Rh2 {[%emt 0:00:15]} Qg4 {[%emt 0:00:04]} 32. Be2 {[%emt 0:00:24]} Qg6 {[%emt 0:00:40]} 33. Bh5 {[%emt 0:00:09]} Qh6 {[%emt 0:00:03]} 34. Be2 {[%emt 0:01:54]} Qg6 {[%emt 0:00:07]} 35. Bh5 {[%emt 0:00:05]} Qh6 {[%emt 0:00:07]} 36. Be8 1/2-1/2

[Event "21st Dubai Open 2019"]
[Site "Dubai"]
[Date "2019.04.07"]
[Round "7.34"]
[White "Nitish Belurkar"]
[Black "Wang, Shanshan"]
[Result "1-0"]
[ECO "B50"]
[WhiteElo "2327"]
[BlackElo "2116"]
[Annotator "NA"]
[PlyCount "77"]
[EventDate "2019.04.01"]
[EventType "swiss"]
[EventCountry "UAE"]
[SourceTitle "playchess.com"]
[Source "ChessBase"]
[SourceQuality "1"]
[TimeControl "5400+30"]

1. e4 {[%emt 0:00:00]} c5 {[%emt 0:00:00]} 2. Nf3 {[%emt 0:00:00]} d6 {[%emt 0:00:00]} 3. Nc3 {[%emt 0:00:00]} Nc6 {[%emt 0:00:04]} 4. g3 {[%emt 0:01:24]} Nf6 {[%emt 0:00:44]} 5. Bg2 {[%emt 0:00:07]} g6 {[%emt 0:00:19]} 6. O-O {[%emt 0:01:02]} Bg7 {[%emt 0:00:04]} 7. d3 {[%emt 0:00:13]} O-O {[%emt 0:00:25]} 8. h3 {[%emt 0:01:56]} a6 {[%emt 0:00:58]} 9. Be3 {[%emt 0:01:11]} Qc7 {[%emt 0:05:10]} 10. Qd2 {[%emt 0:01:45]} Ne5 {[%emt 0:03:54]} 11. Nh2 {[%emt 0:06:29]} Nc6 {[%emt 0:08:28]} 12. f4 {[%emt 0:05:17]} Nd4 {[%emt 0:01:58]} 13. g4 {[%emt 0:05:14]} e6 {[%emt 0:04:13]} 14. Bxd4 {[%emt 0:09:40]} cxd4 {[%emt 0:00:07]} 15. Ne2 {[%emt 0:00:07]} e5 {[%emt 0:06:40]} 16. f5 {[%emt 0:02:59]} Nd7 {[%emt 0:04:56]} 17. g5 {[%emt 0:02:57]} f6 {[%emt 0:06:45]} 18. h4 {[%emt 0:00:38]} d5 {[%emt 0:02:13]} 19. Ng3 {[%emt 0:06:43]} Nc5 {[%emt 0:09:50]} 20. b4 {[%emt 0:15:52]} Na4 {[%emt 0:00:20]} 21. Ng4 {[%emt 0:00:42]} dxe4 {[%emt 0:04:49]} 22. Bxe4 {[%emt 0:02:10]} gxf5 {[%emt 0:02:25]} 23. Nxf5 {[%emt 0:03:29]} Nc3 {[%emt 0:04:05]} 24. gxf6 {[%emt 0:01:54]} Nxe4 {[%emt 0:01:04]} 25. Ne7+ {[%emt 0:00:56]} Qxe7 {[%emt 0:01:25]} 26. fxe7 {[%emt 0:00:08]} Nxd2 {[%emt 0:03:27]} 27. Rxf8+ {[%emt 0:00:00]} Bxf8 {[%emt 0:00:00]} 28. e8=Q {[%emt 0:00:00]} Bxg4 {[%emt 0:00:53]} 29. Qxa8 {[%emt 0:00:06]} h5 {[%emt 0:01:02]} 30. Qxb7 {[%emt 0:00:27]} Bh6 {[%emt 0:01:06]} 31. Qd5+ {[%emt 0:00:18]} Kh7 {[%emt 0:00:34]} 32. Kg2 {[%emt 0:01:48]} e4 {[%emt 0:02:19]} 33. Qf7+ {[%emt 0:00:06]} Bg7 {[%emt 0:00:30]} 34. dxe4 {[%emt 0:00:09]} Nxe4 {[%emt 0:00:20]} 35. Rf1 {[%emt 0:00:28]} Nd6 {[%emt 0:00:51]} 36. Qd5 {[%emt 0:00:06]} Nb5 {[%emt 0:01:37]} 37. Qe4+ {[%emt 0:00:18]} Kh6 {[%emt 0:00:44]} 38. Rf4 {[%emt 0:00:19]} Nd6 {[%emt 0:00:43]} 39. Rxg4 {[%emt 0:00:08]} 1-0

[Event "21st Dubai Open 2019"]
[Site "Dubai"]
[Date "2019.04.07"]
[Round "7.35"]
[White "Priyanka Nutakki"]
[Black "Galindo, Joseph"]
[Result "1-0"]
[ECO "A18"]
[WhiteElo "2313"]
[BlackElo "2049"]
[Annotator "NA"]
[PlyCount "115"]
[EventDate "2019.04.01"]
[EventType "swiss"]
[EventCountry "UAE"]
[SourceTitle "playchess.com"]
[Source "ChessBase"]
[SourceQuality "1"]
[TimeControl "5400+30"]

1. c4 {[%emt 0:00:00]} Nf6 {[%emt 0:00:00]} 2. Nc3 {[%emt 0:00:00]} e6 {[%emt 0:00:00]} 3. e4 {[%emt 0:00:00]} d5 {[%emt 0:00:00]} 4. e5 {[%emt 0:00:01]} d4 {[%emt 0:00:01]} 5. exf6 {[%emt 0:00:07]} dxc3 {[%emt 0:00:12]} 6. bxc3 {[%emt 0:00:09]} Qxf6 {[%emt 0:00:04]} 7. Nf3 {[%emt 0:00:07]} h6 {[%emt 0:00:11]} 8. d4 {[%emt 0:03:23]} c5 {[%emt 0:00:16]} 9. Bd3 {[%emt 0:04:38]} Nc6 {[%emt 0:01:26]} 10. Be4 {[%emt 0:01:07] A18: English Opening: Flohr-Mikenas System (1 c4 Nf6 2 Nc3 e6 3 e4)} cxd4 {[%emt 0:08:48]} 11. cxd4 {[%emt 0:01:03]} Bb4+ {[%emt 0:00:07]} 12. Bd2 {[%emt 0:00:09]} Bxd2+ {[%emt 0:00:32]} 13. Qxd2 {[%emt 0:00:07]} O-O {[%emt 0:00:07]} (13... Bd7 14. Rb1 Rb8 15. O-O O-O 16. Qe3 b6 17. d5 exd5 18. cxd5 Ne7 {1-0 (32) Erigaisi,A (2499)-Wang,T (2332) Budapest 2018}) 14. O-O {[%emt 0:01:03]} Rd8 {[%emt 0:00:11]} 15. Bxc6 {[%emt 0:06:07]} bxc6 {[%emt 0:00:03]} 16. Qa5 {[%emt 0:00:18]} Bd7 {[%emt 0:01:02]} 17. Rab1 {[%emt 0:07:06]} Qf5 {[%emt 0:08:36]} 18. c5 {[%emt 0:01:10]} f6 $146 {[%emt 0:13:36]} ({Predecessor:} 18... Be8 19. Rb2 a6 {1-0 (19) Osipow,N (2206)-Tomczyk,M (2161) Wisla 2002}) 19. Rb7 {[%emt 0:03:16]} e5 {[%emt 0:00:42]} 20. dxe5 {[%emt 0:20:43]} fxe5 {[%emt 0:15:50]} 21. Qc7 {[%emt 0:26:38]} e4 22. Nd4 {[%emt 0:01:26]} Qf6 {[%emt 0:24:17]} 23. Nc2 {[%emt 0:03:34]} Bc8 {[%emt 0:02:13]} 24. Rxa7 {[%emt 0:03:43]} Rd7 {[%emt 0:00:57]} 25. Qxd7 {[%emt 0:00:06]} Bxd7 {[%emt 0:00:13]} 26. Rxa8+ {[%emt 0:00:03]} Kh7 {[%emt 0:00:11]} 27. Ne3 {[%emt 0:02:42]} Qc3 {[%emt 0:01:17]} 28. h3 {[%emt 0:03:18]} Qxc5 {[%emt 0:00:21]} 29. Rb1 {[%emt 0:00:07]} Qc3 {[%emt 0:05:10]} 30. a4 {[%emt 0:02:19]} Be6 {[%emt 0:00:24]} 31. Ra7 {[%emt 0:01:59]} h5 {[%emt 0:01:54]} 32. a5 {[%emt 0:03:01]} Ba2 {[%emt 0:00:41]} 33. Rbb7 {[%emt 0:01:36]} Qe1+ {[%emt 0:03:26]} 34. Kh2 {[%emt 0:00:01]} Qxf2 {[%emt 0:00:15]} 35. Rxg7+ {[%emt 0:00:10]} Kh8 {[%emt 0:00:02]} 36. Rh7+ {[%emt 0:00:36]} Kg8 {[%emt 0:00:06]} 37. Rhg7+ {[%emt 0:01:48]} Kh8 {[%emt 0:00:16]} 38. Rh7+ {[%emt 0:00:01]} Kg8 {[%emt 0:00:02]} 39. Rhc7 {[%emt 0:02:01]} Kh8 {[%emt 0:01:29]} 40. Ra8+ {[%emt 0:03:38]} Bg8 {[%emt 0:00:04]} 41. Rcc8 {[%emt 0:00:02]} Qf4+ {[%emt 0:01:03]} 42. Kh1 {[%emt 0:00:10]} Qxe3 {[%emt 0:00:39]} 43. Rxg8+ {[%emt 0:00:04]} Kh7 {[%emt 0:00:05]} 44. Rh8+ {[%emt 0:00:49]} Kg6 {[%emt 0:07:22]} 45. Rag8+ {[%emt 0:00:13]} Kf7 {[%emt 0:00:13]} 46. Rf8+ {[%emt 0:00:03]} Kg7 {[%emt 0:00:54]} 47. a6 {[%emt 0:01:09]} h4 {[%emt 0:02:40]} 48. Rhg8+ {[%emt 0:00:13]} Kh7 {[%emt 0:00:01]} 49. Rg4 Qe1+ {[%emt 0:05:59]} 50. Kh2 {[%emt 0:01:47]} Qa1 {[%emt 0:00:24]} 51. Rf5 {[%emt 0:00:44]} Kh6 {[%emt 0:00:28]} 52. Rxe4 {[%emt 0:00:33]} Qxa6 {[%emt 0:00:08]} 53. Rxh4+ {[%emt 0:00:17]} Kg6 {[%emt 0:00:05]} 54. Rf3 {[%emt 0:00:13]} Qe2 {[%emt 0:01:04]} 55. Rg4+ {[%emt 0:00:10]} Kh7 {[%emt 0:00:48]} 56. Rf7+ {[%emt 0:00:09]} Kh8 {[%emt 0:00:31]} 57. Rf5 {[%emt 0:00:20]} Qe8 $18 {[%emt 0:00:05]} 58. Rfg5 {[%emt 0:00:55]} 1-0

[Event "21st Dubai Open 2019"]
[Site "Dubai"]
[Date "2019.04.07"]
[Round "7.36"]
[White "Chekh Adm Khedr, Aram"]
[Black "Koniahli, Malek."]
[Result "1-0"]
[ECO "C41"]
[WhiteElo "2146"]
[BlackElo "2299"]
[Annotator "NA"]
[PlyCount "87"]
[EventDate "2019.04.01"]
[EventType "swiss"]
[EventCountry "UAE"]
[SourceTitle "playchess.com"]
[Source "ChessBase"]
[SourceQuality "1"]
[TimeControl "5400+30"]

1. e4 {[%emt 0:00:00]} e5 {[%emt 0:00:00]} 2. Nf3 {[%emt 0:00:04]} d6 {[%emt 0:00:00]} 3. d4 {[%emt 0:04:46]} Nd7 {[%emt 0:00:03]} 4. Bc4 {[%emt 0:00:43]} c6 {[%emt 0:00:06]} 5. a4 {[%emt 0:00:50]} Be7 {[%emt 0:00:17]} 6. c3 {[%emt 0:03:57]} h6 {[%emt 0:00:57]} 7. Qb3 {[%emt 0:00:37]} d5 {[%emt 0:34:21]} 8. exd5 {[%emt 0:00:42]} exd4 {[%emt 0:00:16]} 9. cxd4 {[%emt 0:02:21]} b5 {[%emt 0:10:13]} 10. axb5 {[%emt 0:02:16]} cxb5 {[%emt 0:00:01]} 11. Bxb5 {[%emt 0:01:53]} Kf8 {[%emt 0:03:35]} 12. Bf4 {[%emt 0:06:39]} Qb6 {[%emt 0:04:03]} 13. Qc4 {[%emt 0:01:30]} Qg6 {[%emt 0:10:23]} 14. O-O {[%emt 0:08:36]} Nb6 {[%emt 0:00:08]} 15. Qc6 {[%emt 0:00:31]} Nf6 {[%emt 0:02:06]} 16. d6 {[%emt 0:18:42]} Bd8 {[%emt 0:00:20]} 17. Re1 {[%emt 0:06:49]} Kg8 {[%emt 0:03:54]} 18. Ne5 {[%emt 0:01:19]} Qf5 {[%emt 0:01:18]} 19. Qf3 {[%emt 0:04:05]} g5 {[%emt 0:06:08]} 20. Bg3 {[%emt 0:01:29]} Qxf3 {[%emt 0:00:28]} 21. Nxf3 {[%emt 0:00:04]} Bb7 {[%emt 0:06:03]} 22. Ne5 {[%emt 0:00:34]} Ne4 {[%emt 0:01:30]} 23. Bc6 {[%emt 0:01:22]} Nxd6 {[%emt 0:01:37]} 24. Bxb7 {[%emt 0:01:55]} Nxb7 {[%emt 0:00:01]} 25. Nc3 {[%emt 0:00:10]} Kg7 {[%emt 0:01:33]} 26. Nc6 {[%emt 0:01:38]} Bf6 {[%emt 0:00:05]} 27. Ne4 {[%emt 0:00:46]} Rhe8 {[%emt 0:03:17]} 28. Nxf6 {[%emt 0:00:29]} Rxe1+ {[%emt 0:00:07]} 29. Rxe1 {[%emt 0:00:05]} Kxf6 {[%emt 0:00:06]} 30. Be5+ {[%emt 0:00:32]} Kg6 {[%emt 0:03:53]} 31. b3 {[%emt 0:05:24]} Re8 {[%emt 0:03:02]} 32. Kf1 {[%emt 0:00:26]} a6 {[%emt 0:00:37]} 33. Nb4 {[%emt 0:01:28]} a5 {[%emt 0:00:53]} 34. Nc6 {[%emt 0:02:12]} Nd5 {[%emt 0:00:38]} 35. Bg3 {[%emt 0:01:10]} Rxe1+ 36. Kxe1 {[%emt 0:00:01]} f5 {[%emt 0:02:33]} 37. Be5 {[%emt 0:01:04]} Nc3 {[%emt 0:00:29]} 38. Kd2 {[%emt 0:01:24]} Ne4+ {[%emt 0:00:21]} 39. Ke3 {[%emt 0:00:12]} Nc3 {[%emt 0:00:03]} 40. Kd3 {[%emt 0:00:15]} Nd1 {[%emt 0:01:05]} 41. f3 {[%emt 0:00:16]} Kf7 {[%emt 0:00:42]} 42. Kd2 {[%emt 0:00:35]} Nf2 {[%emt 0:02:45]} 43. Ke2 {[%emt 0:00:05]} Nh1 {[%emt 0:00:56]} 44. Bc7 {[%emt 0:00:20]} 1-0